Cogmind - Beta 13 @@@ ROGUE MODE // 2024.03.03 @ 16:04:21 Player: Trantor Result: Destroyed by D-53 Grenadier with Mini Grenade Launcher Performance ------------- Evolutions (0) 0 Regions Visited (4) 800 Robots Destroyed (28) 140 Value Destroyed (471) 471 Prototype IDs (5) 100 Alien Tech Used (0) 0 Bonus (-74) -74 TOTAL SCORE: 1437 Bonus ------- Follower Combat Kills 7 Friendly Fire -81 Cogmind --------- Core Integrity 0/250 Matter 12/300 Energy 77/100 System Corruption 8% Temperature Cool (0) Movement Core (450) Ox8 Location -9/Mines Parts ------- > --- POWER (1) -------- (None) > --- PROPULSION (2) --- (None) > --- UTILITY (2) ------ Large Storage Unit > --- WEAPON (2) ------- Heavy Assault Rifle Light Cannon > --- INVENTORY (15) --- Light Ion Engine Light Treads Aluminum Leg Aluminum Leg Large Matter Pod (150) Structural Scanner Signal Interpreter Terrain Scanner Transport Network Coupler Light Armor Plating Light Cannon Grenade Launcher Rocket Launcher Datajack Peak State ------------ > --- POWER ------------ Ion Engine > --- PROPULSION ------- Aluminum Leg Aluminum Leg > --- UTILITY ---------- Large Storage Unit Experimental Sensor Array > --- WEAPON ----------- Heavy Assault Rifle Heavy Assault Rifle > --- INVENTORY -------- Light Ion Engine Light Treads Aluminum Leg Aluminum Leg Large Matter Pod Structural Scanner Signal Interpreter Terrain Scanner Transport Network Coupler Light Armor Plating Heavy Assault Rifle Light Cannon Light Cannon Grenade Launcher Datajack [Rating: 18] Favorites ----------- Power Ion Engine Engine Ion Engine Propulsion Aluminum Leg Leg Aluminum Leg Utility Large Storage Unit Device Experimental Sensor Array Storage Large Storage Unit Processor Targeting Computer Weapon Heavy Assault Rifle Energy Gun Small Laser Ballistic Gun Heavy Assault Rifle Ballistic Cannon Light Cannon Launcher Grenade Launcher Build | -11 -10 -10 -10 -9 ------- Run | Yrd Mat Min Exi Min Slots Evolved . | . . . . . Power . | . . . . . Propulsion . | . . . . . Utility . | . . . . . Weapon . | . . . . . Parts Attached 32 | 1 15 7 1 8 Power 1 | . 1 . . . Engine 1 | . 1 . . . Core . | . . . . . Reactor . | . . . . . Propulsion 5 | . 4 . . 1 Treads . | . . . . . Leg 5 | . 4 . . 1 Wheel . | . . . . . Hover . | . . . . . Flight . | . . . . . Utility 9 | . 3 5 1 . Device 5 | . . 5 . . Storage 3 | . 2 . 1 . Processor 1 | . 1 . . . Hackware . | . . . . . Protection . | . . . . . Artifact . | . . . . . Weapon 17 | 1 7 2 . 7 Energy Gun . | . . . . . Energy Cannon . | . . . . . Ballistic Gun 11 | 1 5 1 . 4 Ballistic Cannon 3 | . 2 . . 1 Launcher 3 | . . 1 . 2 Special Weapon . | . . . . . Impact Weapon . | . . . . . Slashing Weapon . | . . . . . Piercing Weapon . | . . . . . Special Melee Weapon . | . . . . . Unidentified Prototypes 1 | . . 1 . . Parts Lost 5 | . . . . 5 Power 1 | . . . . 1 Propulsion 2 | . . . . 2 Utility 1 | . . . . 1 Weapon 1 | . . . . 1 Highest Loss Streak 5 | . . . . 5 To Critical Strikes . | . . . . . Average Slot Usage (%) 98 | . 96 100 100 96 Engine 13 | . 14 14 14 11 Leg 27 | . 27 28 28 27 Device 7 | . . 13 14 13 Storage 14 | . 14 14 14 14 Processor 5 | . 12 . . . Ballistic Gun 20 | . 24 16 14 23 Launcher 6 | . . 11 14 4 Naked Turns . | . . . . . Heaviest Build 33 | 10 31 32 32 33 Greatest Support 20 | 20 20 20 20 20 Greatest Overweight (x) 3 | . 3 1 1 2 Average Overweight (x) . | . . 1 1 1 Largest Inventory Capacity 15 | 8 15 15 15 15 Average Capacity 14 | 8 13 15 15 15 Most Carried 15 | 6 15 15 15 15 Average Carried 13 | 6 11 14 15 14 Final Capacity 15 | 8 15 15 15 15 Final Carried 15 | 6 15 15 15 14 Class Distribution -------------------- 85% | Mutant 14% | Scavenger-Mutant Dominant Class ---------------- Mutant | -10/Materials Scavenger-Mutant | -10/Mines Mutant | -10/Exiles Mutant | -9/Mines Resources | -11 -10 -10 -10 -9 ----------- Run | Yrd Mat Min Exi Min Matter Collected 989 | 200 598 73 . 118 Remotely . | . . . . . Salvage Created 819 | . 635 50 . 134 Parts 57 | . 36 18 . 3 Haulers Intercepted 2 | . 2 . . . Recyclers Shooed 1 | . 1 . . . Parts Field Recycled . | . . . . . Retrieved Matter . | . . . . . Parts Self-Destructed . | . . . . . Prevented . | . . . . . Kills | -11 -10 -10 -10 -9 ------- Run | Yrd Mat Min Exi Min Combat Hostiles Destroyed 39 | . 12 8 . 19 Guns 14 | . 11 . . 3 Cannons 2 | . 1 . . 1 AOE 23 | . . 8 . 15 Classes Destroyed 7 | . 6 . . 1 Worker 1 | . 1 . . . Hauler 2 | . 2 . . . Recycler 2 | . 2 . . . Watcher 1 | . 1 . . . Swarmer 14 | . 6 8 . . Grunt 8 | . 6 . . 2 Assembled 17 | . . . . 17 Best Kill Streak 15 | . 3 3 . 15 Combat Bots Only 15 | . 3 3 . 15 Max Kills in Single Turn 4 | . 1 3 . 4 Gunslinging . | . . . . . Exploded 4 | . . 3 . 4 Melee . | . . . . . Uniques/NPCs Destroyed . | . . . . . Combat | -11 -10 -10 -10 -9 -------- Run | Yrd Mat Min Exi Min Hostile Shots Fired 95 | . 45 1 . 49 Missed 23 | . 10 . . 13 Damage Taken 1065 | . 354 39 . 672 Core 255 | . 81 . . 174 Absorbed by Shields . | . . . . . Regen/Repaired (Parts) 42 | . 42 . . . Core Remaining (%) 100 | 100 . . . . Volleys Fired 79 | . 48 6 . 25 Largest 2 | . 2 2 . 2 Hottest 70 | . 70 53 . 63 Shots Fired 144 | . 93 10 . 41 Gun 96 | . 69 3 . 24 Cannon 28 | . 24 . . 4 Launcher 20 | . . 7 . 13 Special . | . . . . . Kinetic 122 | . 91 3 . 28 Thermal 2 | . 2 . . . Explosive 20 | . . 7 . 13 Electromagnetic . | . . . . . Robot Hit Streak 7 | . 7 3 . 6 Robot Miss Streak 5 | . 5 2 . 5 Penetration Max . | . . . . . Secondary Targets . | . . . . . Shots Hit Robots 75 | . 55 1 . 19 Core Hits 75 | . 21 11 . 43 Critical Kills . | . . . . . Critical Parts Destroyed . | . . . . . Critical Strikes . | . . . . . Melee Attacks . | . . . . . Impact . | . . . . . Slashing . | . . . . . Piercing . | . . . . . Sneak Attacks . | . . . . . Combat Hostiles . | . . . . . Follow-up Attacks . | . . . . . Damage Inflicted 2605 | . 889 487 . 1229 Guns 829 | . 629 . . 200 Cannons 308 | . 260 . . 48 Explosions 1468 | . . 487 . 981 Melee . | . . . . . Ramming . | . . . . . Kinetic 1126 | . 878 . . 248 Thermal 11 | . 11 . . . Explosive 1468 | . . 487 . 981 Electromagnetic . | . . . . . Impact . | . . . . . Slashing . | . . . . . Piercing . | . . . . . Highest Corruption 8 | . 3 3 3 8 Average Corruption 3 | . 2 3 3 3 Corruption Purged . | . . . . . Corruption Blocked . | . . . . . Effects 36 | . 10 11 11 4 Message Errors 7 | . 2 2 3 . Matter Fused 5 | . . 2 3 . Heat Flow Errors 4 | . 1 2 . 1 Energy Discharges 9 | . 2 3 2 2 Data Loss (minor) 2 | . . . 1 1 Data Loss (major) 3 | . 2 . 1 . Misfires 3 | . 2 1 . . Alerts 3 | . 1 1 1 . Overload Shots . | . . . . . Overflow Damage 18 | . . 7 . 11 Projectiles . | . . . . . Explosions 18 | . . 7 . 11 Melee . | . . . . . Knockbacks 2 | . 1 . . 1 Impact . | . . . . . Kinetic 2 | . 1 . . 1 Secondary . | . . . . . Self-Inflicted Damage 44 | . . 30 . 14 Shots 3 | . . 1 . 2 Rammed . | . . . . . Targets Rammed . | . . . . . Kicked . | . . . . . Crushed . | . . . . . Highest Temperature 213 | . 164 213 . 157 Average Temperature 51 | . 34 94 . 49 Received Heat Transfer 425 | . 123 . . 302 Siege Activations . | . . . . . Robots Corrupted . | . . . . . Combat Hostiles . | . . . . . Parts Fried . | . . . . . Impact Corruptions . | . . . . . Robots Melted . | . . . . . Combat Hostiles . | . . . . . Parts Melted . | . . . . . Heat Transferred 25 | . 25 . . . Parts Sabotaged . | . . . . . Parts Stolen . | . . . . . Parts Stripped . | . . . . . Power Chain Reactions . | . . . . . Alert | -11 -10 -10 -10 -9 ------- Run | Yrd Mat Min Exi Min Peak Influence 230 | . 230 97 . 106 Initial . | . . . . . Average 55 | . 56 51 . 63 Maximum Alert Level 1 | . 1 . . . Low Security (%) 96 | 100 93 100 . 100 Level 1 3 | . 6 . . . Level 2 . | . . . . . Level 3 . | . . . . . Level 4 . | . . . . . Level 5 . | . . . . . High Security . | . . . . . Max Security . | . . . . . Squads Dispatched 4 | . 4 . . . Investigation 1 | . 1 . . . Extermination . | . . . . . Reinforcement 3 | . 3 . . . Assault . | . . . . . Garrison . | . . . . . Intercept . | . . . . . Searches Triggered . | . . . . . Construction Impeded . | . . . . . Haulers Reinforced . | . . . . . Active Scanning Responses . | . . . . . Cargo Convoy Interrupts . | . . . . . Stealth | -11 -10 -10 -10 -9 --------- Run | Yrd Mat Min Exi Min Distress Signals 2 | . 2 . . . Communications Jammed . | . . . . . Distress Signals . | . . . . . Times Spotted 55 | . 30 2 . 23 Peak Tracking Total 10 | . 4 2 . 10 Tactical Retreats 2 | . 1 . . 1 Traps | -11 -10 -10 -10 -9 ------- Run | Yrd Mat Min Exi Min Traps Triggered 4 | . 4 . . . Indirectly . | . . . . . Trap Hack Attempts . | . . . . . Triggered . | . . . . . Disarmed . | . . . . . Reprogrammed . | . . . . . Reused . | . . . . . Traps Extracted . | . . . . . Installed . | . . . . . Triggered . | . . . . . Machines | -11 -10 -10 -10 -9 ---------- Run | Yrd Mat Min Exi Min Machines Disabled . | . . . . . Max in Single Turn . | . . . . . Machines Repaired . | . . . . . Machines Dismantled . | . . . . . Machines Sabotaged . | . . . . . Overloaded Fab Kills . | . . . . . Hacking | -11 -10 -10 -10 -9 --------- Run | Yrd Mat Min Exi Min Machines Accessed 9 | . 6 . 3 . Terminals 5 | . 5 . . . Fabricators . | . . . . . Repair Stations 1 | . 1 . . . Recycling Units . | . . . . . Scanalyzers . | . . . . . Garrison Access . | . . . . . Total Hacks 37 | . 19 . 18 . Successful 27 | . 9 . 18 . Failed 10 | . 10 . . . Catastrophic 3 | . 3 . . . Database Lockouts . | . . . . . Manual 14 | . 14 . . . Terminals 17 | . 17 . . . Fabricators . | . . . . . Repair Stations 2 | . 2 . . . Recycling Units . | . . . . . Scanalyzers . | . . . . . Garrison Access . | . . . . . Terminal Hacks 24 | . 6 . 18 . Record 18 | . . . 18 . Part Schematic 1 | . 1 . . . Robot Analysis 2 | . 2 . . . Prototype ID Bank 2 | . 2 . . . Unreport Threat 1 | . 1 . . . Fabricator Hacks . | . . . . . Repair Station Hacks 2 | . 2 . . . Scan Component 1 | . 1 . . . Repair 1 | . 1 . . . Recycling Unit Hacks . | . . . . . Scanalyzer . | . . . . . Garrison Access Hacks . | . . . . . Unauthorized Hacks 1 | . 1 . . . Terminals 1 | . 1 . . . Botnet 1 | . 1 . . . Fabricators . | . . . . . Repair Stations . | . . . . . Recycling Units . | . . . . . Scanalyzers . | . . . . . Garrison Access . | . . . . . Data Cores Recovered . | . . . . . Used . | . . . . . Hacking Detections 6 | . 6 . . . Full Trace Events . | . . . . . Feedback Events . | . . . . . Feedback Blocked . | . . . . . Robot Schematics Acquired . | . . . . . Robots Built . | . . . . . Authchips . | . . . . . Time . | . . . . . Total Robot Build Rating . | . . . . . Part Schematics Acquired 1 | . 1 . . . Parts Built . | . . . . . Authchips . | . . . . . Time . | . . . . . Total Part Build Rating . | . . . . . Parts Repaired 1 | . 1 . . . Time 26 | . 26 . . . Parts Recycled . | . . . . . Recycled Matter . | . . . . . Retrieved Matter . | . . . . . Retrieved Components . | . . . . . Parts Scanalyzed . | . . . . . Part Schematics Acquired . | . . . . . Parts Damaged . | . . . . . Bothacking | -11 -10 -10 -10 -9 ------------ Run | Yrd Mat Min Exi Min Used RIF Installer . | . . . . . Robots Hacked . | . . . . . Non-combat . | . . . . . Combat . | . . . . . Robot Hacks Applied . | . . . . . Relay Couplers Released . | . . . . . Fabnet Peak Effective % . | . . . . . Robots Rewired . | . . . . . Allies Hacked . | . . . . . Hacks Repelled . | . . . . . Allies | -11 -10 -10 -10 -9 -------- Run | Yrd Mat Min Exi Min Total Allies 3 | . . 3 . . Largest Group 3 | . . 3 2 . Highest-Rated Group 76 | . . 76 45 . Highest-Rated Ally 31 | . . 31 31 . Total Orders . | . . . . . Ally Attacks 3 | . . 3 . . Total Damage 21 | . . 21 . . Kills 1 | . . 1 . . Allies Corrupted . | . . . . . Allies Melted . | . . . . . Intel | -11 -10 -10 -10 -9 ------- Run | Yrd Mat Min Exi Min Robot Analysis Total 2 | . 2 . . . Derelict Logs Recovered . | . . . . . Drone Launches . | . . . . . Drone Recoveries . | . . . . . Exploration | -11 -10 -10 -10 -9 ------------- Run | Yrd Mat Min Exi Min Turns Passed 3518 | 2 1600 996 718 202 Spaces Moved 1700 | 1 763 493 378 65 Core . | . . . . . Treads . | . . . . . Legs 1700 | 1 763 493 378 65 Wheels . | . . . . . Hover . | . . . . . Flight . | . . . . . Fastest Speed 120 | 120 120 190 190 190 Average Speed 185 | 120 179 190 190 192 Slowest Speed 330 | 120 330 190 190 260 Overloaded Moves . | . . . . . Propulsion Burnouts . | . . . . . Robots Hopped . | . . . . . Cave-ins Triggered . | . . . . . Exploration Rate (%) 55 | 3 97 92 71 14 Regions Visited 4 Branch Regions 3 Pre-discovered Areas 1 | . . . 1 . Known Exits Taken . | . . . . . Unknown Exits Taken 4 | 1 1 1 1 . Scrap Searched 1 | . . 1 . . Spaces Dug 26 | . . 19 . 7 Terrain Destroyed 135 | . . 52 . 83 Melee . | . . . . . Projectile . | . . . . . AOE 135 | . . 52 . 83 Terrain Rammed . | . . . . . Walls Destroyed . | . . . . . Machines Disabled . | . . . . . Actions | -11 -10 -10 -10 -9 --------- Run | Yrd Mat Min Exi Min Total 1931 | 1 905 543 379 103 Wait 75 | . 43 32 . . Move 1696 | . 762 492 377 65 Hop . | . . . . . Pick Up 21 | . 18 1 . 2 Fast Attach 12 | . 8 4 . . Attach 4 | . 1 1 . 2 Detach 5 | . 4 1 . . Swap 16 | 1 6 2 1 6 Drop 23 | . 15 4 1 3 Fire 79 | . 48 6 . 25 Melee . | . . . . . Ram . | . . . . . Kick . | . . . . . Crush . | . . . . . Escape Stasis . | . . . . . Rewire . | . . . . . Trap . | . . . . . Miscellaneous . | . . . . . Route ------- -11/Scrapyard -10/Materials (discovered 5 exits: [*Mat x3] / [*Min x2]) -10/Mines (discovered 3 exits: [*Mat x2] / *Exi) -10/Exiles (discovered 2 exits: [*Min x2]) -9/Mines History --------- Turn | Location | Event 3 | -11/Scrapyard | Discovered new exit (range 0) 3 | -11/Scrapyard | Entered Materials 83 | -10/Materials | Discovered new exit (range 9) 318 | -10/Materials | Build established: Mutant 467 | -10/Materials | Discovered new exit (range 3) 567 | -10/Materials | Repaired Aluminum Leg 693 | -10/Materials | Discovered new exit (range 12) 982 | -10/Materials | Discovered new exit (range 15) 1355 | -10/Materials | Discovered new exit (range 14) 1603 | -10/Materials | Entered Mines 1668 | -10/Mines | Deemed a non-threat by the Exiles lab entrance 1670 | -10/Mines | Discovered new exit (range 5) 1958 | -10/Mines | Received a Mining Laser from a helpful Derelict 1967 | -10/Mines | Build established: Scavenger-Mutant 2004 | -10/Mines | Discovered new exit (range 8) 2139 | -10/Mines | Found a damaged Exp. Sensor Array with a note attached 2146 | -10/Mines | Found Prototype Device 2146 | -10/Mines | Identified Exp. Sensor Array 2373 | -10/Mines | Found a hidden stash of uninstalled traps 2439 | -10/Mines | Discovered new exit (range 12) 2452 | -10/Mines | Build established: Mutant 2599 | -10/Mines | Entered Exiles 2599 | -10/Exiles | Accompanied by 2 allies 2629 | -10/Exiles | Led the pair of lost Derelicts to a safe place 2645 | -10/Exiles | Discovered new exit (range 14) 2702 | -10/Exiles | Met 8R-AWN 2731 | -10/Exiles | Met EX-HEX 2888 | -10/Exiles | Met EX-DEC 2943 | -10/Exiles | Learned location of Zion (-7) 2997 | -10/Exiles | Met EX-BIN 3298 | -10/Exiles | Discovered new exit (range 12) 3317 | -10/Exiles | Entered Mines 3324 | -9/Mines | Received a Rocket Launcher from a helpful Derelict 3438 | -9/Mines | Assembled infested the area 3471 | -9/Mines | Core integrity fell below 50% 3501 | -9/Mines | Destroyed 15 combat bots 3503 | -9/Mines | Core integrity fell below 20% 3519 | -9/Mines | Destroyed by D-53 Grenadier with Mini Grenade Launcher Last Messages --------------- 03484_ The unstable cave ceiling collapses. 03489_ Ion Engine destroyed. 03489_ Critical hit (Burn: +80). 03490_ The unstable cave ceiling collapses. 03500_ Hvy. Assault Rifle destroyed. 03501_ as-95797 destroyed. 03502_ Aluminum Leg destroyed. 03502_ Exp. Sensor Array destroyed. 03502_ System corrupted by crushing effect (+5). 03505_ as-67423 destroyed. 03507_ Acquired 11 matter. 03510_ as-80966 knocked back. 03513_ Acquired 12 matter. 03514_ The unstable cave ceiling collapses. 03515_ as-80966 destroyed. 03518_ System corrupted: Energy discharge (-25). 03519_ C-30 ARC bursts open, deploying its payload. 03519_ D-53 Grenadier unfolds itself. 03519_ Aluminum Leg destroyed. Map ----- +----------------------------------------------------+ | ????????????????????????????????????????? | | ????????????????????????????????????????? | | ????????????????????????????????????????? | | ????????????????????????????????????????? | | ????????????????????????????????????????? | | ????????????????????????????????????????? | | ????????????????????????????????????????? | | ????????????????????????????????????????? | | ????????????????????????????????????????? | | ????????????????????????????????????????? | | ????????? #####???????????????????????? | | ??????? ???????????????????????? | | ??????? # ##?????????????????????? | | ???????? ##????????????????????? | | ????????? #####????????????????? | | ????????### ### ????????????? | | ???????## ????????????? | | ???????# ?????????????? | | ???????# ##???????????????????? | | ???????? # #???????????????????? | | ????????? % # ????????????????????? | | ?????????? # # #????????????????????? | | ???????????# ##???????????????????? | | ????????????# #???????????????????? | | ????????????# #???????????????????? | | ????????????# @ #???????????????????? | | ????????????## ##???????????????????? | | ????????????# #????????????????????? | | ????????????# #????????????????????? | | ????????????### ###????????????????????? | | ?????????###### #??????????????????????? | | ?????????# %d #??????????????????????? | | ?????????# d #??????????????????????? | | ?????????# ######??????????????????????? | | ????????## #??????????###??????????????? | | ????????# #?????????? ##?????????????? | | ????????# ####?????? #???????#?????? | | ????????## ##????? #### ??????? | | ????????# = #???? #????????? | | ????????# = ##### #????????????? | | ????????# ! [ #????????????? | | ????????# #????????????? | | ????????# ####### ##????????????? | | ????????########?????? ##?????????????? | | ???????????????????????###??????????????? | | ????????????????????????????????????????? | | ????????????????????????????????????????? | | ????????????????????????????????????????? | | ????????????????????????????????????????? | | | +----------------------------------------------------+ Best States ------------- Heat Dissipation 35 Energy Generation 10 Energy Capacity 250 Matter Stores 300 Matter Capacity 300 Sight Range 16 Robot Scan Range 20 Terrain Scan Density 10 Evasion (%) 55 Targeting Accuracy 5 Item Schematics ----------------- Lrg. Storage Unit | -10/Materials | Hacked Robot Schematics ------------------ None Fabricated ------------ Nothing Alien Tech Used ----------------- None Achievements -------------- None Challenges ------------ None Game ------ Seed BattleCompositePenetrator Manual? 0 Play Time 00:27:32 Cumulative 280.2 hours Start 2024.03.03 @ 15:39:50 End 2024.03.03 @ 16:04:21 Sessions 1 Manual Loads 0 Difficulty Rogue Special Mode None Game No. 161 Rogue 117 Adventurer 44 Explorer 0 Win Type - Total 2 Types 2/0/0/0/0/0/0/0/0 Lore% 58 Gallery% 62 Achievement% 58 Wizard Run 0 Options --------- Layout 1 ASCII 0 Keyboard 1 Movement Vi Keybinds 1 Fullscreen 2 Font 24/Smallcaps Map View 50x35 Zoom Use 0% Tactical HUD 1 Map Filters NONE Filters NONE Steam 1 RUN: c8a5f7d6-ad1e-4b34-aaab-fad253b21191